fUSD/lending_fUSD_20260106
["ID","MTS","AMOUNT","RATE_DAILY","PERIOD"]
[400568065,1767725766112,-141.25797936,0.0001696,2]
[400568066,1767725766143,-500.0,0.0001696,2]
[400568067,1767725766174,-500.0,0.0001696,2]
[400568068,1767725766206,-500.0,0.0001696,2]
[400568069,1767725766246,-500.0,0.0001696,2]
[400568070,1767725766277,-500.0,0.0001696,2]
[400568071,1767725766311,-500.0,0.0001696,2]
[400568072,1767725766342,-500.0,0.0001696,2]
[400568073,1767725766373,-500.0,0.0001696,2]
[400568074,1767725766405,-500.0,0.0001696,2]
[400568075,1767725766433,-216.84195782,0.0001696,2]
[400568076,1767725766600,-283.81012564,0.0001696,2]
[400568077,1767725766631,-246.65879746,0.0001696,2]
[400568078,1767725766664,-500.0,0.0001696,2]
[400568079,1767725766697,-500.0,0.0001696,2]
[400568080,1767725766729,-500.0,0.0001696,2]
[400568081,1767725766761,-500.0,0.0001696,2]
[400568082,1767725766794,-250.0,0.0001696,2]
[400568083,1767725766822,-220.0,0.0001696,2]
[400568089,1767725788468,574.28009698,0.00016951,2]
[400568092,1767725790934,3424.79205682,0.00016876,2]
[400568093,1767725790957,6566.33299618,0.00016876,2]
[400568100,1767725815685,224.46087517,0.00016861,2]
[400568101,1767725816600,500.0,0.0001696,2]
[400568102,1767725816655,500.0,0.0001696,2]
[400568103,1767725816703,500.0,0.0001696,2]
[400568104,1767725816780,500.0,0.0001696,2]
[400568105,1767725816818,338.56791632,0.0001696,2]
[400568106,1767725821831,550.0,0.0001696,2]
[400568107,1767725822197,300.0,0.0001696,2]
[400568131,1767725904066,20.64821233,0.00016861,2]
[400568132,1767725904091,276.53178767,0.00016861,2]
[400568142,1767725941327,300.0,0.0001696,2]
[400568164,1767725978638,570.46712288,0.00016943,2]
[400568167,1767725988343,5663.33394795,0.00016861,2]
[400568168,1767726001573,300.0,0.0001696,2]
[400568169,1767726001603,1200.0,0.0001696,2]
[400568170,1767726001656,300.0,0.0001696,2]
[400568171,1767726002062,550.0,0.0001696,2]
[400568172,1767726003321,300.0,0.0001696,2]
[400568195,1767726061844,300.0,0.0001696,2]
[400568204,1767726093927,239.6771415,0.00016622,2]
[400568205,1767726093950,783.6388585,0.00016622,2]
[400568206,1767726100592,196.4032658,0.00016861,2]
[400568208,1767726121457,300.0,0.0001696,2]
[400568214,1767726170305,155.3396423,0.0001696,2]
[400568216,1767726181259,300.0,0.0001696,2]
[400568222,1767726226536,2384.44020105,0.00016861,2]
[400568223,1767726242033,300.0,0.0001696,2]
[400568227,1767726301182,1200.0,0.0001696,2]
[400568228,1767726301211,300.0,0.0001696,2]
[400568241,1767726359297,151.0,0.0001696,2]
[400568242,1767726374604,3929.18803235,0.00016861,2]
[400568243,1767726374628,1167.81252076,0.00016861,2]
[400568244,1767726380833,171.85285754,0.00016861,2]
[400568250,1767726503392,8660.3446217,0.00016861,2]
[400568251,1767726503418,10000.01,0.00016861,2]
[400568252,1767726503445,10000.01,0.00016861,2]
[400568253,1767726503471,10000.01,0.00016861,2]
[400568254,1767726503497,10000.01,0.00016861,2]
[400568255,1767726503521,10000.01,0.00016861,2]
[400568256,1767726503548,10000.01,0.00016861,2]
[400568257,1767726503572,10000.01,0.00016861,2]
[400568258,1767726503595,10000.01,0.00016861,2]
[400568259,1767726516263,-192.85383542,0.0001686,2]
[400568260,1767726516319,-500.0,0.0001686,2]
[400568261,1767726516360,-172.66115822,0.0001686,2]
[400568262,1767726516390,-229.07264585,0.0001686,2]
[400568263,1767726516727,-342.55747135,0.0001686,2]
[400568264,1767726529266,-6438.83333032,0.00016861,2]
[400568265,1767726529444,-10000.01,0.00016861,2]
[400568266,1767726534345,-10000.01,0.00016861,2]
[400568267,1767726534476,-10000.01,0.00016861,2]
[400568268,1767726534634,-10000.01,0.00016861,2]
[400568269,1767726534745,-10000.01,0.00016861,2]
[400568270,1767726534870,-10000.01,0.00016861,2]
[400568271,1767726534996,-10000.01,0.00016861,2]
[400568272,1767726535476,-10000.01,0.00016861,2]
[400568273,1767726545833,-10000.01,0.00016861,2]
[400568274,1767726549094,-10000.01,0.00016861,2]
[400568275,1767726549196,-10000.01,0.00016861,2]
[400568276,1767726549344,-10000.01,0.00016861,2]
[400568277,1767726549454,-10000.01,0.00016861,2]
[400568278,1767726549700,-10000.01,0.00016861,2]
[400568279,1767726549854,-10000.01,0.00016861,2]
[400568280,1767726549969,-10000.01,0.00016861,2]
[400568281,1767726550079,-10000.01,0.00016861,2]
[400568282,1767726563386,-10000.01,0.00016861,2]
[400568283,1767726563631,-10000.01,0.00016861,2]
[400568284,1767726563666,-10000.01,0.00016861,2]
[400568285,1767726563680,-10000.01,0.00016861,2]
[400568286,1767726563694,-10000.01,0.00016861,2]
[400568287,1767726567554,-10000.01,0.00016861,2]
[400568288,1767726567588,-10000.01,0.00016861,2]
[400568293,1767726632197,-151.0,0.00016858,2]
[400568294,1767726632207,-151.0,0.00016858,2]
[400568295,1767726632218,-1200.0,0.00016859,2]
[400568296,1767726632228,-177.0,0.00016859,2]
[400568297,1767726632238,-300.0,0.00016859,2]
[400568298,1767726632247,-195.0,0.00016859,2]
[400568299,1767726632257,-500.0,0.0001686,2]
[400568300,1767726632266,-500.0,0.0001686,2]
[400568301,1767726632275,-155.15572809,0.0001686,2]
[400568302,1767726632284,-500.0,0.0001686,2]
[400568303,1767726632294,-500.0,0.0001686,2]
[400568304,1767726632304,-570.97022529,0.0001686,2]
[400568305,1767726632315,-500.0,0.0001686,2]
[400568306,1767726632324,-405.54698116,0.0001686,2]
[400568307,1767726632333,-248.12706546,0.0001686,2]
[400568311,1767726632429,-251.87293454,0.0001686,2]
[400568313,1767726632439,-500.0,0.0001686,2]
[400568315,1767726632449,-500.0,0.0001686,2]
[400568317,1767726632458,-1643.24477996,0.00016861,2]
[400568322,1767726632500,-4655.84505265,0.00016861,2]
[400568325,1767726632513,-565.41868301,0.00016861,2]
[400568334,1767726632575,-856.13601881,0.00016861,2]
[400568336,1767726632586,-11514.38735582,0.00016861,2]
[400568363,1767726638473,-479838.03954932,0.00016861,2]
[400568364,1767726638529,-592.47286909,0.00016861,2]
[400568449,1767726640409,-1402.59250029,0.00016861,2]
[400568450,1767726640420,-1308.25673477,0.00016861,2]
[400568451,1767726640492,-7844.34004746,0.00016861,2]
[400568454,1767726644060,-1445.93,0.00016861,2]
[400568455,1767726644762,-500.0,0.0001686,2]
[400568456,1767726644772,-5913.91770365,0.00016861,2]
[400568457,1767726644783,-6908.21171855,0.00016861,2]
[400568478,1767726646264,-337.24381303,0.0001686,2]
[400568480,1767726646401,-162.75618697,0.0001686,2]
[400568481,1767726646411,-500.0,0.0001686,2]
[400568482,1767726646420,-1177.9528366,0.00016861,2]
[400568498,1767726810439,716.89,8.987e-05,2]
[400568499,1767726810843,716.89,9.46e-05,2]
[400568500,1767726810990,716.89,9.933e-05,2]
[400568501,1767726811222,716.89,0.00010406,2]
[400568502,1767726811469,716.89,0.00010879,2]
[400568503,1767726811651,716.89,0.00011352,2]
[400568504,1767726812070,716.89,0.00011825,2]
[400568505,1767726812291,716.89,0.00012298,2]
[400568506,1767726817389,716.89,0.00012772,2]
[400568507,1767726817549,716.89,0.00013245,2]
[400568508,1767726817664,716.89,0.00013718,2]
[400568509,1767726817961,716.89,0.00014191,2]
[400568510,1767726818224,716.89,0.00014664,2]
[400568511,1767726818440,680.44,0.00015137,2]
[400568512,1767726818463,36.45,0.00015137,2]
[400568513,1767726818656,716.89,0.0001561,2]
[400568516,1767726935595,-259.75483917,0.00016001,2]
[400568523,1767726971820,-940.24516083,0.00016001,2]
[400568524,1767726971849,-300.0,0.00016001,2]
[400568525,1767726971878,-300.0,0.00016001,2]
[400568528,1767727081849,300.0,0.00016001,2]
[400568529,1767727082754,300.0,0.00016001,2]
[400568530,1767727095608,500.0,0.00030904,120]
[400568531,1767727318305,10000.01,0.00015961,2]
[400568532,1767727318330,79.881932,0.00015961,2]
[400568533,1767727525930,1026.32214192,0.000108,2]
[400568534,1767727530038,8893.80592608,0.00016,2]
[400568535,1767727530062,3143.21610122,0.00016,2]
[400568538,1767727560024,6856.79389878,8e-05,2]
[400568539,1767727560048,10000.01,8e-05,2]
[400568540,1767727560072,6687.84215743,8e-05,2]
[400568541,1767727563917,634.24593411,0.00011,2]
[400568542,1767727593477,-284.0,0.00016042,2]
[400568543,1767727593508,-311.58451508,0.00016062,2]
[400568544,1767727593537,-300.0,0.00016062,2]
[400568545,1767727593568,-716.89,0.00016083,2]
[400568546,1767727593597,-300.0,0.00016378,2]
[400568547,1767727593626,-300.0,0.00016378,2]
[400568548,1767727593655,-189.15157182,0.00016378,2]
[400568549,1767727593685,-716.89,0.00016556,2]
[400568550,1767727593919,-1000.0,0.00016575,2]
[400568551,1767727593949,-182.21,0.00016635,2]
[400568552,1767727593978,-326.5071533,0.00016639,2]
[400568553,1767727594007,-216.86806891,0.0001666,2]
[400568554,1767727594263,-3189.82,0.00016702,2]
[400568555,1767727594292,-177.31565734,0.00016718,2]
[400568556,1767727594321,-500.0,0.00016759,2]
[400568557,1767727594354,-425.36639819,0.00016759,2]
[400568558,1767727594384,-348.95579645,0.00016759,2]
[400568559,1767727594417,-160.35085209,0.00016759,2]
[400568560,1767727596126,-203.37762742,0.00016759,2]
[400568561,1767727596162,-21263.87129989,0.0001676,2]
[400568562,1767727606284,-465.55340207,0.00016759,2]
[400568563,1767727606317,-500.0,0.00016759,2]
[400568564,1767727606349,-500.0,0.00016759,2]
[400568565,1767727606381,-500.0,0.00016759,2]
[400568566,1767727606417,-500.0,0.00016759,2]
[400568567,1767727606452,-500.0,0.00016759,2]
[400568568,1767727606485,-500.0,0.00016759,2]
[400568569,1767727606516,-500.0,0.00016759,2]
[400568570,1767727606551,-500.0,0.00016759,2]
[400568571,1767727606585,-500.0,0.00016759,2]
[400568572,1767727606783,-500.0,0.00016759,2]
[400568573,1767727606815,-500.0,0.00016759,2]
[400568574,1767727606848,-500.0,0.00016759,2]
[400568575,1767727606882,-500.0,0.00016759,2]
[400568576,1767727606913,-225.97626085,0.00016759,2]
[400568577,1767727606946,-371.05787579,0.00016759,2]
[400568578,1767727606977,-500.0,0.00016759,2]
[400568579,1767727616355,-5907.953336,0.000162,5]
[400568580,1767727616447,-4639.55658624,0.000162,5]
[400568581,1767727616523,-720.89682752,0.0001676,2]
[400568582,1767727624447,-300.0,0.00016759,2]
[400568583,1767727624477,-550.0,0.00016759,2]
[400568584,1767727624532,-8300.01,0.0001676,2]
[400568585,1767727632779,-500.0,0.00016759,2]
[400568586,1767727632819,-9000.01,0.0001676,2]
[400568587,1767727632912,-10000.01,0.0001676,2]
[400568588,1767727634511,2829.96557733,0.00016,2]
[400568589,1767727634569,979.88092702,0.00016,2]
[400568590,1767727634606,1119.21541804,0.00016,2]
[400568591,1767727634645,1090.43412186,0.00016,2]
[400568593,1767727657331,-500.0,0.00016759,2]
[400568594,1767727657365,-428.78341193,0.00016759,2]
[400568595,1767727657394,-448.37709264,0.00016759,2]
[400568596,1767727657485,-7245.68899086,0.0001676,2]
[400568598,1767727677169,-500.0,0.00016759,2]
[400568599,1767727677229,-9000.01,0.0001676,2]
[400568600,1767727677275,-10000.01,0.0001676,2]
[400568601,1767727685916,9001.87313919,0.0001439,2]
[400568603,1767727698959,998.13686081,0.00015,2]
[400568604,1767727698983,3499.97623728,0.00015,2]
[400568609,1767727721294,-763.85,0.00016492,2]
[400568610,1767727740743,-660.48,0.00016493,2]
[400568611,1767727765227,150.1,0.000152,2]
[400568612,1767727768428,-500.0,0.00016483,2]
[400568613,1767727769343,-89.44,0.00016483,2]
[400568614,1767727769603,-6321.15376272,0.00016625,2]
[400568615,1767727769715,-3731.75389077,0.00016625,2]
[400568616,1767727769789,-2536.50221846,0.00016625,2]
[400568617,1767727769861,-500.0,0.00016691,2]
[400568618,1767727769915,-10000.01,0.00016691,2]
[400568619,1767727770028,-10000.01,0.00016691,2]
[400568620,1767727770092,-10000.01,0.00016691,2]
[400568621,1767727770355,-10000.01,0.00016691,2]
[400568622,1767727770709,-10000.01,0.00016691,2]
[400568623,1767727770846,-10000.01,0.00016691,2]
[400568624,1767727771221,-500.0,0.00016691,2]
[400568625,1767727772556,-500.0,0.00016691,2]
[400568626,1767727773918,-500.0,0.00016691,2]
[400568627,1767727775120,-500.0,0.00016691,2]
[400568628,1767727775183,150.1,0.000152,2]
[400568629,1767727776583,-500.0,0.00016691,2]
[400568630,1767727776598,-10000.01,0.00016691,2]
[400568631,1767727776709,-10000.01,0.00016691,2]
[400568632,1767727776893,-10000.01,0.00016691,2]
[400568633,1767727777907,-500.0,0.00016691,2]
[400568634,1767727779370,-500.0,0.00016691,2]
[400568635,1767727780239,-500.0,0.00016691,2]
[400568636,1767727781583,-500.0,0.00016691,2]
[400568637,1767727783086,-500.0,0.00016691,2]
[400568638,1767727784345,-500.0,0.00016691,2]
[400568639,1767727785176,150.1,0.000152,2]
[400568640,1767727785731,-500.0,0.00016691,2]
[400568641,1767727787175,-500.0,0.00016691,2]
[400568642,1767727788883,-500.0,0.00016691,2]
[400568643,1767727789797,-500.0,0.00016691,2]
[400568644,1767727791163,-500.0,0.00016691,2]
[400568645,1767727792410,-500.0,0.00016691,2]
[400568646,1767727793705,-500.0,0.00016691,2]
[400568647,1767727795185,163.41007833,0.000152,2]
[400568648,1767727803784,-318.16224451,0.0001666,2]
[400568649,1767727803806,-181.83775549,0.0001669,2]
[400568650,1767727805177,-318.16224451,0.00016661,2]
[400568651,1767727805200,-118.16224451,0.0001669,2]
[400568652,1767727805223,-63.67551098,0.0001669,2]
[400568653,1767727809061,-236.32448902,0.0001669,2]
[400568654,1767727809085,-263.67551098,0.0001669,2]
[400568655,1767727810864,-318.16224451,0.00016661,2]
[400568656,1767727810887,-181.83775549,0.0001669,2]
[400568657,1767727812370,-64.48673353,0.0001669,2]
[400568658,1767727812392,-435.51326647,0.0001669,2]
[400568659,1767727818742,-500.0,0.0001669,2]
[400568684,1767727831675,-264.48673353,0.0001669,2]
[400568686,1767727831686,-376.79469319,0.00016691,2]
[400568688,1767727831697,-4488.79999999,0.00016691,2]
[400568690,1767727831708,-495.31677303,0.00016691,2]
[400568697,1767727831766,-522.04790989,0.00016691,2]
[400568699,1767727831778,-13034.98228488,0.00016691,2]
[400568702,1767727831790,-20589.78437754,0.00016691,2]
[400568706,1767727831822,-522.36481144,0.00016691,2]
[400568708,1767727831834,-9081.0,0.00016691,2]
[400568710,1767727831845,-864.08449454,0.00016691,2]
[400568713,1767727831856,-59103.9529133,0.00016691,2]
[400568715,1767727831867,-899.86519061,0.00016691,2]
[400568721,1767727831915,-41428.78290757,0.00016691,2]
[400568723,1767727831926,-418.24853192,0.00016691,2]
[400568725,1767727831938,-1195.98280455,0.00016691,2]
[400568727,1767727831950,-7211.0,0.00016691,2]
[400568730,1767727831969,-1932.64807024,0.00016691,2]
[400568733,1767727831981,-920.0,0.00016691,2]
[400568810,1767727833236,-10000.01,0.00016691,2]
[400568811,1767727833289,-10000.01,0.00016691,2]
[400568815,1767727837563,-852.51481247,0.00016691,2]
[400568816,1767727837575,-47035.15474192,0.00016691,2]
[400568817,1767727837590,-2890.27613519,0.00016691,2]
[400568818,1767727837601,-154379.70966353,0.00016691,2]
[400568819,1767727837611,-12989.41242834,0.000167,2]
[400568820,1767727837621,-195.0,0.00016725,2]
[400568821,1767727837630,-1164.57792283,0.0001675,2]
[400568823,1767727837641,-500.0,0.00016759,2]
[400568825,1767727837650,-368.97453457,0.00016759,2]
[400568827,1767727837659,-295.58156261,0.00016759,2]
[400568829,1767727837669,-689.84521891,0.00016759,2]
[400568831,1767727837678,-503.75302711,0.00016759,2]
[400568833,1767727837688,-600.0,0.00016759,2]
[400568835,1767727837697,-195.0,0.00016759,2]
[400568837,1767727837706,-250.0,0.00016759,2]
[400568839,1767727837715,-300.0,0.00016759,2]
[400568841,1767727837724,-2442.36768609,0.0001676,2]
[400568843,1767727837735,-698.58201612,0.0001676,2]
[400568846,1767727837746,-465.16280073,0.0001676,2]
[400568852,1767727837793,-1304.90056787,0.0001676,2]
[400568855,1767727837811,-919558.47981092,0.0001676,2]
[400568857,1767727837820,-88994.6419,0.00016761,2]
[400568859,1767727837829,-6703.2125,0.00016761,2]
[400568861,1767727837839,-204.93951531,0.00016761,2]
[400568863,1767727837848,-195.0,0.00016767,2]
[400568865,1767727837857,-300.0,0.00016767,2]
[400568867,1767727837866,-336.62801576,0.00016767,2]
[400568869,1767727837875,-12589.4098719,0.00016767,2]
[400568871,1767727837885,-999.0,0.00016793,3]
[400568873,1767727837894,-172.23,0.00016821,2]
[400568875,1767727837903,-151.0,0.00016851,2]
[400568877,1767727837912,-151.0,0.00016851,2]
[400568879,1767727837921,-151.0,0.00016851,2]
[400568881,1767727837931,-151.0,0.00016851,2]
[400568883,1767727837940,-151.0,0.00016851,2]
[400568885,1767727837950,-151.0,0.00016851,2]
[400568887,1767727837958,-151.0,0.00016851,2]
[400568889,1767727837967,-151.0,0.00016851,2]
[400568891,1767727837976,-151.0,0.00016851,2]
[400568893,1767727837985,-317.8102,0.00016861,2]
[400568895,1767727837994,-919.0722775,0.00016861,2]
[400568896,1767727838003,-425.3610433,0.00016861,2]
[400568899,1767727838012,-3099.706305,0.00016867,2]
[400568901,1767727838022,-12589.4098719,0.00016908,2]
[400568902,1767727838031,-200.0,0.0001696,2]
[400568905,1767727838041,-500.0,0.0001696,2]
[400568907,1767727838051,-500.0,0.0001696,2]
[400568909,1767727838061,-500.0,0.0001696,2]
[400568911,1767727838070,-620.0,0.00016985,2]
[400568913,1767727838080,-500.0,0.00016985,2]
[400568914,1767727838089,-500.0,0.00016985,2]
[400568916,1767727838098,-500.0,0.00016985,2]
[400568918,1767727838107,-500.0,0.00016985,2]
[400568920,1767727838117,-500.0,0.00016985,2]
[400568922,1767727838127,-500.0,0.00016985,2]
[400568924,1767727838136,-500.0,0.00016985,2]
[400568926,1767727838146,-200.0,0.00016985,2]
[400568928,1767727838156,-500.0,0.00016985,2]
[400568930,1767727838166,-500.0,0.00016985,2]
[400568932,1767727838175,-207.4,0.00016985,2]
[400568934,1767727838185,-500.0,0.00016985,2]
[400568936,1767727838195,-215.0738,0.00016985,2]
[400568937,1767727838204,-500.0,0.00016985,2]
[400568939,1767727838214,-500.0,0.00016985,2]
[400568941,1767727838223,-223.0315306,0.00016985,2]
[400568943,1767727838233,-500.0,0.00016985,2]
[400568945,1767727838242,-231.28369723,0.00016985,2]
[400568947,1767727838252,-500.0,0.00016985,2]
[400568949,1767727838261,-239.84119403,0.00016985,2]
[400568951,1767727838271,-500.0,0.00016985,2]
[400568953,1767727838280,-202.85776972,0.00016985,2]
[400568954,1767727838290,-716.89,0.00017029,2]
[400568956,1767727838300,-12589.4098719,0.0001705,2]
[400568958,1767727838309,-1467.0,0.00017053,2]
[400568960,1767727838319,-200.0,0.0001713,2]
[400568962,1767727838328,-1467.0,0.00017132,2]
[400568964,1767727838339,-12589.4098719,0.00017192,2]
[400568966,1767727838348,-168.0,0.00017199,2]
[400568968,1767727838358,-1467.0,0.00017219,2]
[400568970,1767727838367,-200.0,0.00017301,2]
[400568972,1767727838377,-12589.4098719,0.00017333,2]
[400568974,1767727838386,-1467.0,0.00017412,2]
[400568976,1767727838396,-200.0,0.00017474,2]
[400568978,1767727838406,-12589.4098719,0.00017475,2]
[400568980,1767727838415,-1600.62354172,0.000175,2]
[400568982,1767727838424,-716.89,0.00017502,2]
[400568984,1767727838433,-1467.0,0.00017524,2]
[400568986,1767727838443,-12589.4098719,0.00017617,2]
[400568988,1767727838452,-1467.0,0.00017635,2]
[400568990,1767727838461,-1467.0,0.00017671,2]
[400568992,1767727838471,-305.71308607,0.000177,5]
[400568994,1767727838484,-12589.4098719,0.00017758,2]
[400568996,1767727838494,-301.16616672,0.000178,2]
[400568998,1767727838503,-168.0,0.00017809,2]
[400569000,1767727838513,-1143.118,0.00017841,2]
[400569002,1767727838522,-162.46,0.00017841,2]
[400569004,1767727838531,-168.0,0.00017852,2]
[400569006,1767727838543,-168.0,0.00017865,2]
[400569008,1767727838553,-1467.0,0.00017866,2]
[400569009,1767727838563,-282.53552991,0.000179,2]
[400569011,1767727838572,-5362.28150488,0.000179,2]
[400569013,1767727838582,-12589.4098719,0.000179,2]
[400569015,1767727838591,-391.84294713,0.000179,2]
[400569017,1767727838600,-209.9721304,0.000179,2]
[400569019,1767727838610,-4632.39574098,0.00017921,2]
[400569021,1767727838619,-172.23,0.00017943,2]
[400569023,1767727838628,-168.0,0.00017968,2]
[400569025,1767727838637,-500.0,0.00017973,2]
[400569027,1767727838647,-500.0,0.00017973,2]
[400569029,1767727838656,-500.0,0.00017973,2]
[400569031,1767727838665,-716.89,0.00017975,2]
[400569033,1767727838675,-168.0,0.00017989,2]
[400569035,1767727838684,-1164.57792283,0.0001799,2]
[400569037,1767727838694,-300.0,0.00017999,2]
[400569039,1767727838704,-666.0,0.00017999,2]
[400569041,1767727838712,-723.90239833,0.00018,2]
[400569043,1767727838722,-1149976.44030989,0.00018,2]
[400569045,1767727838735,-2400760.84434233,0.00018,2]
[400569047,1767727838744,-150374.43054705,0.00018,2]
[400569049,1767727838754,-168.0,0.00018021,2]
[400569051,1767727838764,-1467.0,0.00018031,2]
[400569053,1767727838773,-168.0,0.00018042,2]
[400569055,1767727838782,-1467.0,0.00018088,2]
[400569057,1767727838791,-1467.0,0.00018158,2]
[400569059,1767727838800,-420.0,0.00018235,2]
[400569061,1767727838810,-420.0,0.00018235,2]
[400569063,1767727838819,-168.0,0.00018245,2]
[400569065,1767727838828,-168.0,0.00018248,2]
[400569067,1767727838838,-168.0,0.00018266,2]
[400569069,1767727838849,-168.0,0.00018311,2]
[400569071,1767727838860,-1680.0,0.00018326,2]
[400569073,1767727838870,-250.0,0.00018359,2]
[400569075,1767727838880,-195.0,0.0001836,2]
[400569077,1767727838891,-1000.0,0.00018401,2]
[400569079,1767727838901,-2500.0,0.00018401,2]
[400569081,1767727838911,-1467.0,0.00018413,2]
[400569083,1767727838921,-168.0,0.00018425,2]
[400569085,1767727838931,-193.0,0.00018435,2]
[400569087,1767727838940,-600.0,0.00018435,2]
[400569089,1767727838951,-195.0,0.00018435,2]
[400569091,1767727838960,-250.0,0.00018435,2]
[400569093,1767727838970,-300.0,0.00018435,2]
[400569094,1767727838979,-2500.0,0.00018435,2]
[400569096,1767727838988,-151.0,0.00018452,2]
[400569098,1767727838997,-158.98978226,0.00018452,2]
[400569100,1767727839007,-4699.0,0.0001849,2]
[400569102,1767727839016,-29571.75,0.00018501,2]
[400569104,1767727839026,-500.0,0.00018521,2]
[400569106,1767727839035,-596.90998776,0.00018521,2]
[400569108,1767727839044,-202.51911864,0.00018521,2]
[400569110,1767727839054,-1260.0,0.00018562,2]
[400569112,1767727839063,-1260.0,0.00018562,2]
[400569114,1767727839073,-1260.0,0.00018562,2]
[400569116,1767727839082,-1260.0,0.00018562,2]
[400569119,1767727839092,-1260.0,0.00018562,2]
[400569120,1767727839101,-983.9346905,0.00018562,2]
[400569122,1767727839111,-1000.0,0.00018647,2]
[400569125,1767727839120,-200.0,0.00018716,2]
[400569127,1767727839130,-108830.2676649,0.00018805,2]
[400569128,1767727839139,-167.99433605,0.000189,2]
[400569130,1767727839149,-200.0,0.00019,2]
[400569132,1767727839158,-300.0,0.00019,2]
[400569134,1767727839167,-978.0,0.00019,2]
[400569136,1767727839176,-612.0,0.00019,2]
[400569138,1767727839186,-691.6379642,0.00019003,2]
[400569140,1767727839196,-172.23,0.00019064,2]
[400569142,1767727839205,-500.0,0.00019089,2]
[400569144,1767727839214,-500.0,0.00019089,2]
[400569146,1767727839223,-527.57264582,0.00019089,2]
[400569148,1767727839232,-1500.0,0.0001909,2]
[400569150,1767727839241,-500.0,0.00019236,2]
[400569152,1767727839250,-22907.62,0.00019236,2]
[400569154,1767727839259,-150.0,0.00019258,2]
[400569157,1767727839269,-24283.315053,0.00019277,2]
[400569159,1767727839278,-1197.08,0.00019339,2]
[400569161,1767727839287,-9999.99,0.00019339,2]
[400569163,1767727839296,-1195.8,0.00019339,2]
[400569165,1767727839307,-14488.88,0.00019339,2]
[400569167,1767727839316,-299.99,0.00019339,7]
[400569169,1767727839326,-150.99,0.00019339,2]
[400569171,1767727839335,-999.99,0.00019339,2]
[400569173,1767727839344,-4632.39574091,0.00019419,2]
[400569175,1767727839354,-154.3252897,0.0001948,2]
[400569177,1767727839363,-166.69,0.00019637,2]
[400569179,1767727839372,-3546.96,0.00019669,2]
[400569181,1767727839381,-511.0,0.00019923,2]
[400569183,1767727839390,-566.0,0.00019923,2]
[400569185,1767727839399,-500.0,0.00019973,2]
[400569187,1767727839408,-500.0,0.00019973,2]
[400569189,1767727839418,-1156.76575264,0.0002,2]
[400569191,1767727839428,-1000.0,0.0002,7]
[400569193,1767727839438,-500.0,0.00020111,2]
[400569196,1767727839447,-337.25,0.00020135,2]
[400569198,1767727839457,-200.0,0.00020179,2]
[400569199,1767727839466,-172.23,0.00020185,2]
[400569201,1767727839477,-1662.0624459,0.00020394,2]
[400569203,1767727839489,-442.24,0.0002052,2]
[400569206,1767727839500,-1000.0,0.00020521,2]
[400569208,1767727839510,-500.0,0.00020521,2]
[400569210,1767727839519,-2617.0,0.00020549,2]
[400569212,1767727839528,-1532.84547,0.000206,2]
[400569214,1767727839537,-1532.84548,0.000206,2]
[400569216,1767727839546,-1532.84548,0.000206,2]
[400569217,1767727839556,-1532.84548,0.000206,2]
[400569219,1767727839566,-1532.84547,0.000206,2]
[400569222,1767727839575,-1532.84548,0.000206,2]
[400569223,1767727839585,-1000.0,0.00020719,2]